Cogmind - Beta 15 @@@ ROGUE MODE // 2025.06.12 @ 13:35:46 // AFD2020/Player2 Player: Minty Result: Destroyed by H-71 Marshal with Heavy Mass Driver Performance ------------- Evolutions (5) 2500 Regions Visited (17) 3400 Robots Destroyed (177) 885 Value Destroyed (6205) 6205 Prototype IDs (53) 1060 Alien Tech Used (0) 0 Bonus (3785) 3785 TOTAL SCORE: 17835 Bonus ------- High Alert Combat Kills 1021 Follower Combat Kills 3182 Awakened Behemoth Slayer 1000 Aligned with FarCom 300 Destroyed Z-Imprinter 1000 Friendly Fire -2718 Cogmind --------- Core Integrity 0/1000 Matter 264/300 Energy 56/300 System Corruption 9% Temperature Cool (0) Movement Flying (240) Ox5 Location -5/Factory Parts ------- > --- POWER (1) -------- (None) > --- PROPULSION (5) --- Enhanced Armored Leg Improved Surge Thruster > --- UTILITY (8) ------ Large Storage Unit Compact Battery Improved Target Analyzer > --- WEAPON (3) ------- (None) > --- INVENTORY (15) --- Angular Momentum Engine Light Angular Momentum Engine Micro Fission Core Micro Fission Core Improved Gravmag System Cooled Gravmag System Improved Cooling System Zionite Metafield Generator Zionite Phaser-S Long-range Proton Cannon Heavy Phase Cannon Longsword +1 CR-A16's Behemoth Slayer Peak State ------------ > --- POWER ------------ Light Nuclear Core > --- PROPULSION ------- Potential Leg Potential Leg > --- UTILITY ---------- Army-in-a-Box > --- WEAPON ----------- Shock Rifle Plasma Cannon Heavy Ion Cannon > --- INVENTORY -------- Large Storage Unit Mini Grenade Launcher Longsword +1 [Rating: 89] Favorites ----------- Power Light Nuclear Core Engine Heavy Ion Engine Power Core Light Nuclear Core Reactor Zionite Light DM Reactor Propulsion Light Treads Treads Light Treads Leg Enhanced Armored Leg Wheel Wheel Hover Unit Improved Gravmag System Flight Unit Improved Surge Thruster Utility Large Storage Unit Device Improved Heat Sink Storage Large Storage Unit Processor Machine Analyzer Hackware Hacking Suite Protection Layered Light Armor Plating Weapon Spread Laser Energy Gun Spread Laser Energy Cannon Plasma Cannon Ballistic Gun Enhanced Autogun Ballistic Cannon Light Cannon Launcher Mini Grenade Launcher Special Weapon Plasma Cutter Slashing Weapon Longsword +1 Piercing Weapon CR-A16's Pointy Stick Build | -11 -10 -10 -9 -9 -9 -8 -8 -8 -7 -7 -7 -7 -7 -6 -6 -6 -5 ------- Run | Yrd Mat Min Mat Min Exi Min Mat Sto Fac Low Low Zio Dee Pro Fac Ext Fac Slots Evolved 10 | . . . 2 . . . 2 . 2 . . . . . 2 . 2 Power . | . . . . . . . . . . . . . . . . . . Propulsion 3 | . . . 1 . . . . . . . . . . . 1 . 1 Utility 6 | . . . . . . . 2 . 2 . . . . . 1 . 1 Weapon 1 | . . . 1 . . . . . . . . . . . . . . Parts Attached 164 | . 10 . 10 1 5 10 21 16 12 3 5 5 18 8 9 16 15 Power 13 | . 2 . 1 . 1 . . 3 1 . . . 1 2 1 1 . Engine 8 | . 1 . 1 . 1 . . 2 . . . . . 1 1 1 . Core 3 | . 1 . . . . . . 1 1 . . . . . . . . Reactor 2 | . . . . . . . . . . . . . 1 1 . . . Propulsion 49 | . 3 . 3 . 2 5 8 8 . . 1 . 4 2 4 5 4 Treads 23 | . 2 . 3 . . 2 1 8 . . 1 . . 1 . 4 1 Leg 8 | . . . . . 2 . 3 . . . . . 1 1 . . 1 Wheel 8 | . 1 . . . . 3 4 . . . . . . . . . . Hover 9 | . . . . . . . . . . . . . 3 . 4 1 1 Flight 1 | . . . . . . . . . . . . . . . . . 1 Utility 58 | . 1 . 1 . . 4 10 1 8 1 4 . 9 4 4 5 6 Device 21 | . 1 . . . . . 4 . 3 1 2 . 1 1 2 2 4 Storage 10 | . . . 1 . . 3 . . 2 . . . 2 2 . . . Processor 8 | . . . . . . . 3 . . . . . 1 1 1 1 1 Hackware 2 | . . . . . . . 1 1 . . . . . . . . . Protection 17 | . . . . . . 1 2 . 3 . 2 . 5 . 1 2 1 Artifact . | . . . . . . . . . . . . . . . . . . Weapon 44 | . 4 . 5 1 2 1 3 4 3 2 . 5 4 . . 5 5 Energy Gun 14 | . 1 . 4 . . . . 1 2 . . . 3 . . 2 1 Energy Cannon 5 | . . . . . . . . . 1 1 . . . . . 1 2 Ballistic Gun 3 | . 1 . . . . . . 1 . . . . . . . . 1 Ballistic Cannon 5 | . 2 . 1 . . . . . . 1 . . . . . 1 . Launcher 12 | . . . . 1 1 . 2 2 . . . 3 1 . . 1 1 Special Weapon 1 | . . . . . . . . . . . . 1 . . . . . Impact Weapon . | . . . . . . . . . . . . . . . . . . Slashing Weapon 3 | . . . . . 1 1 1 . . . . . . . . . . Piercing Weapon 1 | . . . . . . . . . . . . 1 . . . . . Special Melee Weapon . | . . . . . . . . . . . . . . . . . . Unidentified Prototypes 17 | . . . . . . . . 2 . . . 1 10 . 1 . 3 Corrupted Parts 1 | . . . . . . . . . . . . . . . . . 1 System Corruption 4 | . . . . . . . . . . . . . . . . . 4 Parts Lost 54 | . . . . . . 1 1 2 4 1 2 . 4 6 1 14 18 Power 6 | . . . . . . . . 2 1 . . . . 1 . 1 1 Propulsion 13 | . . . . . . . . . . . 1 . 1 3 . 4 4 Utility 25 | . . . . . . 1 1 . 1 1 . . 3 2 1 6 9 Weapon 10 | . . . . . . . . . 2 . 1 . . . . 3 4 Highest Loss Streak 11 | . . . . . . 1 1 1 2 1 2 . 3 4 1 10 11 To Critical Strikes . | . . . . . . . . . . . . . . . . . . Average Backups 10 | . 5 7 6 8 5 6 9 9 9 10 6 12 14 13 12 13 13 Power 1 | . . 1 1 2 . . 1 1 1 1 . 1 . . . . 2 Propulsion 1 | . 3 4 1 1 . 2 2 2 3 4 1 . . . . 1 1 Utility 3 | . . . . 2 1 1 2 2 1 1 1 6 8 6 6 6 3 Weapon 3 | . 1 2 2 3 2 2 3 3 4 4 2 4 5 5 5 6 6 Tool/Special . | . . . . . . . . . . . . . . . . . . Unused Backups 36 | . 5 . 9 . 4 . 2 . . . 1 . 5 . . 1 9 Power 11 | . . . 1 . 1 . . . . . 1 . 1 . . . 7 Propulsion 9 | . 5 . 3 . 1 . . . . . . . . . . . . Utility 12 | . . . 3 . 2 . 1 . . . . . 3 . . 1 2 Weapon 4 | . . . 2 . . . 1 . . . . . 1 . . . . Tool/Special . | . . . . . . . . . . . . . . . . . . Average Slot Usage (%) 88 | . 88 100 99 100 77 81 93 95 95 92 75 82 79 87 94 82 90 Engine 5 | . 9 . 7 11 11 11 9 7 6 . . . . 4 1 5 4 Core 2 | . 4 14 3 . . . . 1 . 7 7 7 4 . . . . Treads 17 | . 15 28 33 33 25 7 4 18 23 23 21 15 9 4 2 7 21 Leg 1 | . 6 . . . 5 1 . . . . . . . 4 2 . 4 Wheel 2 | . 5 . . . . 19 21 7 . . . . . . . . . Hover 2 | . . . . . . . . . . . . . 8 11 16 15 . Device 8 | . 4 14 11 11 11 . 3 . 19 18 7 7 4 1 4 13 12 Storage 10 | . 14 14 11 11 11 14 9 9 7 7 4 7 9 22 20 10 6 Processor 2 | . . . . . . . 7 9 1 . . . . 6 9 7 4 Hackware 1 | . . . . . . . . 15 10 . . . . . . . . Protection 9 | . . . . . . 5 12 2 4 15 11 23 19 10 8 8 15 Energy Gun 8 | . 4 . 10 33 3 . . . 10 . 5 . 7 15 20 3 9 Energy Cannon 1 | . . . . . . . . . 2 11 3 . 2 . . 2 3 Ballistic Cannon 2 | . 18 28 21 . . . . . . 4 . . . . . 1 . Launcher 3 | . . . . . 4 9 . 6 3 . 5 9 10 . . 3 1 Slashing Weapon 4 | . . . . . 6 10 23 16 3 . 5 7 1 . . 1 . Peak Build Rating 89 | . 11 11 17 17 44 41 40 44 52 52 89 51 74 83 88 83 89 Average Rating 43 | . 7 11 14 17 23 25 35 39 48 48 60 45 49 68 81 63 76 On Entrance 38 | 6 6 11 11 17 17 40 23 40 44 48 49 41 46 64 69 85 68 Naked Turns . | . . . . . . . . . . . . . . . . . . Heaviest Build 108 | 13 17 17 23 23 25 39 48 44 53 65 108 59 62 47 51 78 80 Greatest Support 113 | 20 40 40 60 60 60 60 39 62 60 60 71 48 48 42 39 110 113 Greatest Overweight (x) 8 | . 1 . . . . 8 3 1 . 1 3 1 2 2 2 7 1 Average Overweight (x) . | . . . . . . . 1 . . . . 1 . . 1 . . Largest Inventory Capacity 25 | . 8 8 8 8 8 15 15 15 25 15 15 15 15 15 15 15 15 Average Capacity 12 | . 8 8 8 8 8 11 15 15 15 15 10 15 15 15 15 15 15 Most Carried 15 | . 8 8 8 8 8 15 15 15 15 15 15 15 15 15 15 15 15 Average Carried 12 | . 5 7 6 8 7 11 14 14 14 15 8 12 14 13 12 14 14 Final Capacity 15 | 8 8 8 8 8 8 15 15 15 15 15 15 15 15 15 15 15 15 Final Carried 15 | 6 7 8 8 8 8 15 15 15 15 15 9 15 15 11 15 15 13 Class Distribution -------------------- 30% | Mutant 17% | Gunner 14% | Scavenger-Tank 13% | Tank 7% | Scavenger-Mutant 5% | Derelict-Mutant 3% | Scavenger-Gladiator Dominant Class ---------------- Mutant | -10/Materials Mutant | -10/Mines Gunner | -9/Materials Gunner | -9/Mines Mutant | -9/Exiles Derelict-Mutant | -8/Mines Derelict-Mutant | -8/Materials Scavenger-Gladiator | -8/Storage Scavenger-Mutant | -7/Factory Tank | -7/Lower Caves Mutant | -7/Lower Caves Mutant | -7/Zion Tank | -7/Deep Caves Scavenger-Tank | -6/Proximity Caves Tank | -6/Factory Scavenger-Mutant | -6/Extension Scavenger-Tank | -5/Factory Resources | -11 -10 -10 -9 -9 -9 -8 -8 -8 -7 -7 -7 -7 -7 -6 -6 -6 -5 ----------- Run | Yrd Mat Min Mat Min Exi Min Mat Sto Fac Low Low Zio Dee Pro Fac Ext Fac Matter Collected 4216 | 200 164 40 286 122 . 394 369 410 136 153 192 153 174 356 75 635 357 Remotely . | . . . . . . . . . . . . . . . . . . Salvage Created 6409 | . 289 . 436 161 . 137 610 845 493 205 47 . 358 213 54 1296 1265 Parts 373 | . 12 . 32 16 . 8 54 39 25 8 5 . 21 12 7 58 76 Haulers Intercepted 3 | . . . 1 . . . . 2 . . . . . . . . . Recyclers Shooed 4 | . 1 . 1 . . . 1 1 . . . . . . . . . Parts Field Recycled . | . . . . . . . . . . . . . . . . . . Retrieved Matter . | . . . . . . . . . . . . . . . . . . Parts Self-Destructed 39 | . . . . . . . . . . 9 4 . . 26 . . . Prevented 6 | . . . . . . . . . . . 5 . . 1 . . . Kills | -11 -10 -10 -9 -9 -9 -8 -8 -8 -7 -7 -7 -7 -7 -6 -6 -6 -5 ------- Run | Yrd Mat Min Mat Min Exi Min Mat Sto Fac Low Low Zio Dee Pro Fac Ext Fac Combat Hostiles Destroyed 133 | . 5 . 7 7 . 10 17 7 10 3 . . 11 7 1 25 23 Melee 13 | . . . . 1 . 1 6 5 . . . . . . . . . Guns 32 | . 2 . 1 5 . . . . 6 2 . . 3 3 1 . 9 Cannons 18 | . 3 . 6 . . . . . . 1 . . 2 . . 3 3 AOE 64 | . . . . 1 . 9 11 2 4 . . . 6 4 . 18 9 Classes Destroyed 22 | . 2 . 6 1 . 1 4 1 2 . 1 . 1 1 . 2 . Worker 7 | . . . 1 1 . . 2 1 . . . . . . . . 2 Builder 14 | . . . 1 2 . . 5 3 . . . . . . . 3 . Tunneler 5 | . . . 1 1 . 1 . . . . . . . . 1 . 1 Hauler 3 | . . . 1 . . . . 2 . . . . . . . . . Recycler 6 | . 1 . 3 . . . . 1 . . . . . . . 1 . Minesweeper 1 | . . . . . . . . . . . . . . 1 . . . Mechanic 2 | . . . . . . . . 1 1 . . . . . . . . Operator 1 | . . . . . . . 1 . . . . . . . . . . Watcher 5 | . . . . . . . 1 2 1 . . . . . . 1 . Swarmer 24 | . . . 2 . . 7 2 . . . . . . 5 . 3 5 Cutter 7 | . . . . . . . 3 . . . . . . . . . 4 Grunt 54 | . 5 . 3 6 . 2 6 5 5 2 . . . 2 1 9 8 Brawler 4 | . . . . . . 1 1 . 1 1 . . . . . . . Duelist 7 | . . . . . . . . . 3 . . . . . . 3 1 Protector 2 | . . . . . . . 2 . . . . . . . . . . Sentry 11 | . . . 2 . . . 3 4 . . . . . . . 2 . Hunter 3 | . . . . . . . . . . . . . . . . 2 1 Programmer 5 | . . . . . . . . . 1 . . . . . . . 4 Behemoth 1 | . . . . . . . . . . . . . . . . 1 . Z-Light 8 | . . . . . . . . . . . . . 8 . . . . Packrat 1 | . . . . . . . . . . 1 . . . . . . . Samaritan 1 | . . . . . . . . . . . 1 . . . . . . Assembled 4 | . . . . 1 . . . . . . . . 3 . . . . Thug 5 | . . . . . . . . . . . . . . . . 4 1 Savage 1 | . . . . . . . . . . . . . . . . . 1 Guerrilla 1 | . . . . . . . . . . . . . . . . 1 . Best Kill Streak 14 | . 2 . 3 7 . 4 14 4 6 2 . . 5 4 1 9 5 Combat Bots Only 10 | . 2 . 2 5 . 4 10 1 5 2 . . 5 4 1 8 4 Max Kills in Single Turn 5 | . 1 . 1 1 . 3 3 3 3 1 1 . 1 2 1 3 5 Gunslinging 1 | . . . . . . . . . . . . . . . . . 1 Exploded 3 | . . . . 1 . 3 2 1 2 . . . 1 2 . 3 3 Melee 1 | . . . . 1 . 1 1 1 . . . . . . . . . Uniques/NPCs Destroyed 1 | . . . . . . . . . . . . . 1 . . . . Z-Imprinter (-7/Deep Caves) Combat | -11 -10 -10 -9 -9 -9 -8 -8 -8 -7 -7 -7 -7 -7 -6 -6 -6 -5 -------- Run | Yrd Mat Min Mat Min Exi Min Mat Sto Fac Low Low Zio Dee Pro Fac Ext Fac Hostile Shots Fired 662 | . 13 9 32 22 . 33 51 39 37 23 6 . 57 32 6 153 149 Missed 210 | . 3 4 8 5 . 12 19 9 18 6 2 . 18 12 1 50 43 Hits 452 | . 10 5 24 17 . 21 32 30 19 17 4 . 39 20 5 103 106 Melee 17 | . . . . . . . 4 . 4 . 4 . . . . . 5 Projectile 435 | . 10 5 24 17 . 21 28 30 15 17 . . 39 20 5 103 101 AOE 4 | . . . . . . . . . . . . . . . . . 4 Critical Strikes 17 | . . . 1 1 . . 2 1 1 . . . . . . 3 8 Damage Taken 9803 | . 108 72 310 299 . 287 535 698 541 379 184 . 1163 375 147 1979 2726 Core 1504 | . . . 47 46 . 81 57 140 . . 6 . 56 78 37 572 384 Absorbed by Shields . | . . . . . . . . . . . . . . . . . . Redirected to Shielding 403 | . . . . . . . . . . . . . 140 46 51 31 135 Ignored by Resistances 117 | . . . . . . . . . . . . . . . . 39 78 Regen/Repaired (Parts) 190 | . . . . . . . . . . . . . . . . . 190 Core Remaining (%) 56 | 100 . 76 . . . 41 . 52 . . . . . 51 . 21 . Volleys Fired 279 | . 15 5 27 16 . 9 13 13 19 17 7 . 21 14 6 41 56 Largest 3 | . 2 2 3 3 . 2 1 1 3 3 3 . 3 3 3 3 3 Hottest 252 | . 60 60 195 195 . 66 30 36 180 189 195 . 180 180 180 228 252 Shots Fired 570 | . 30 10 80 42 . 12 13 13 41 41 9 . 41 32 18 58 130 Gun 298 | . 16 . 21 39 . . . . 34 13 1 . 18 28 18 15 95 Cannon 159 | . 14 10 59 . . . . . 3 28 2 . 8 . . 10 25 Launcher 113 | . . . . 3 . 12 13 13 4 . 6 . 15 4 . 33 10 Special . | . . . . . . . . . . . . . . . . . . Kinetic 110 | . 22 10 59 . . . . . . 17 . . . . . 2 . Thermal 263 | . 8 . 21 39 . . . . 3 24 2 . 20 19 12 23 92 Explosive 82 | . . . . 3 . 12 13 . 4 . 6 . 15 4 . 25 . Electromagnetic 73 | . . . . . . . . 13 34 . 1 . . . . 8 17 Phasic 42 | . . . . . . . . . . . . . 6 9 6 . 21 Robot Hit Streak 25 | . 8 5 5 8 . 5 3 1 10 19 7 . 6 4 4 25 7 Robot Miss Streak 11 | . 3 1 11 5 . 3 2 2 3 2 1 . 3 3 4 2 3 Penetration Max . | . . . . . . . . . . . . . . . . . . Secondary Targets 6 | . 1 . . 1 . . . . . . . . . . . . 4 Max Gunslinging Chain 1 | . 1 . . 1 . . . . . . . . . . . . 1 Shots Hit Robots 407 | . 18 8 38 27 . 14 41 26 31 30 6 . 16 16 11 52 73 Core Hits 347 | . 8 1 22 35 . 12 41 26 31 9 5 . 35 8 4 63 47 Critical Kills . | . . . . . . . . . . . . . . . . . . Critical Parts Destroyed . | . . . . . . . . . . . . . . . . . . Critical Strikes 12 | . . . 3 . . . 4 1 1 . . . . 2 . 1 . Burn 1 | . . . . . . . . . . . . . . . . 1 . Blast 3 | . . . 3 . . . . . . . . . . . . . . Corrupt 1 | . . . . . . . . . 1 . . . . . . . . Sever 5 | . . . . . . . 4 1 . . . . . . . . . Intensify 2 | . . . . . . . . . . . . . . 2 . . . Melee Attacks 115 | . . . . . . 12 51 33 3 . . 2 . . . 14 . Impact . | . . . . . . . . . . . . . . . . . . Slashing 107 | . . . . . . 12 51 33 3 . . 2 . . . 6 . Piercing 8 | . . . . . . . . . . . . . . . . 8 . Sneak Attacks 22 | . . . . . . 5 9 6 . . . . . . . 2 . Combat Hostiles . | . . . . . . . . . . . . . . . . . . Follow-up Attacks 5 | . . . . . . . 3 2 . . . . . . . . . Damage Inflicted 21526 | . 263 143 612 517 . 1314 3324 2336 1743 746 546 . 1549 731 326 3874 3502 Guns 4368 | . 65 . 192 354 . . . . 463 213 18 . 273 430 326 271 1763 Cannons 2113 | . 198 143 409 . . . 18 . 50 533 54 . 134 . . 225 349 Explosions 10795 | . . . . 123 . 780 1546 924 1164 . 474 . 1135 301 . 2964 1384 Melee 4166 | . . . . . . 534 1760 1412 57 . . . . . . 403 . Ramming 84 | . . . 11 40 . . . . 9 . . . 7 . . 11 6 Kinetic 1126 | . 232 143 409 . . . . . . 308 . . . . . 34 . Thermal 5169 | . 31 . 192 354 . . . 278 463 438 54 . 308 199 194 462 2196 Explosive 7731 | . . . . 123 . 780 1546 149 661 . 474 . 1135 301 . 2562 . Electromagnetic 2242 | . . . . . . . . 497 553 . 18 . . . . 402 772 Impact 18 | . . . . . . . 18 . . . . . . . . . . Slashing 3972 | . . . . . . 534 1760 1412 57 . . . . . . 209 . Piercing 194 | . . . . . . . . . . . . . . . . 194 . Phasic 990 | . . . . . . . . . . . . . 99 231 132 . 528 Highest Corruption 9 | . . . 2 2 2 2 . 2 . . . . . . . . 9 Average Corruption 1 | . . . 2 2 2 2 . 1 . . . . . . . . 2 Corruption Purged . | . . . . . . . . . . . . . . . . . . Corruption Blocked . | . . . . . . . . . . . . . . . . . . Effects 36 | . . . 3 12 6 8 . 3 . . . . . . . . 4 Message Errors 3 | . . . . . . 1 . 2 . . . . . . . . . Matter Fused 15 | . . . . 6 2 3 . 1 . . . . . . . . 3 Heat Flow Errors 4 | . . . 1 1 2 . . . . . . . . . . . . Energy Discharges 7 | . . . 1 3 1 1 . . . . . . . . . . 1 Data Loss (minor) 4 | . . . . 1 1 2 . . . . . . . . . . . Data Loss (major) 2 | . . . . 1 . 1 . . . . . . . . . . . Weapon Failures 1 | . . . 1 . . . . . . . . . . . . . . Overload Shots . | . . . . . . . . . . . . . . . . . . Overflow Damage 888 | . . . . . . 207 189 155 86 33 33 . 8 27 . 82 68 Projectiles 36 | . . . . . . . . . . 33 . . 3 . . . . Explosions 372 | . . . . . . 63 8 15 86 . 33 . 5 27 . 67 68 Melee 480 | . . . . . . 144 181 140 . . . . . . . 15 . Knockbacks 11 | . 2 5 2 . . . . . . 2 . . . . . . . Impact . | . . . . . . . . . . . . . . . . . . Kinetic 10 | . 2 4 2 . . . . . . 2 . . . . . . . Secondary 1 | . . 1 . . . . . . . . . . . . . . . Self-Inflicted Damage 822 | . . . . 56 . . . 228 173 . 162 . 21 17 . 70 95 Shots 29 | . . . . 2 . . . 9 3 . 5 . 1 1 . 5 3 Rammed 15 | . . . 1 7 . . . . 1 . 1 . 1 . . 3 1 Targets Rammed 20 | . . . 3 10 . . . . 1 . 1 . 1 . . 3 1 Kicked . | . . . . . . . . . . . . . . . . . . Crushed 5 | . . . 2 3 . . . . . . . . . . . . . Highest Temperature 426 | . 56 . 210 426 236 . 13 15 96 351 114 334 278 326 312 306 192 Average Temperature 103 | . 25 . 79 171 120 . 6 8 37 107 59 173 76 151 106 105 90 Received Heat Transfer 2870 | . 60 42 108 141 . 81 207 171 96 96 . . 297 36 45 1103 387 Effects 7 | . . . . 4 . . . . . . . . . 3 . . . Shutdowns 1 | . . . . 1 . . . . . . . . . . . . . Energy Bleed 1 | . . . . 1 . . . . . . . . . . . . . Interference 5 | . . . . 2 . . . . . . . . . 3 . . . Siege Activations . | . . . . . . . . . . . . . . . . . . Martial Activations . | . . . . . . . . . . . . . . . . . . Shielding Activations . | . . . . . . . . . . . . . . . . . . Robots Disrupted 1 | . . . . . . . . . 1 . . . . . . . . Combat Hostiles 1 | . . . . . . . . . 1 . . . . . . . . Robots Corrupted 5 | . . . . . . . . . . . . . . . . 3 2 Combat Hostiles 5 | . . . . . . . . . . . . . . . . 3 2 Parts Fried 12 | . . . . . . . . 1 1 . . . . . . 6 4 Impact Corruptions . | . . . . . . . . . . . . . . . . . . Robots Melted . | . . . . . . . . . . . . . . . . . . Combat Hostiles . | . . . . . . . . . . . . . . . . . . Parts Melted 6 | . . . . . . . . . . . . . . . . 1 5 Heat Transferred 6201 | . 75 . 235 430 . . . 450 286 735 59 . 433 259 259 855 2125 Parts Sabotaged . | . . . . . . . . . . . . . . . . . . Parts Stolen 3 | . . . . . . . . . . . 3 . . . . . . Parts Stripped . | . . . . . . . . . . . . . . . . . . Power Chain Reactions 9 | . . . . . . . . 4 3 . . . . . . . 2 Alert | -11 -10 -10 -9 -9 -9 -8 -8 -8 -7 -7 -7 -7 -7 -6 -6 -6 -5 ------- Run | Yrd Mat Min Mat Min Exi Min Mat Sto Fac Low Low Zio Dee Pro Fac Ext Fac Maximum Alert Level 4 | . . . 1 . . 1 3 3 3 . . . . . . 3 4 Low Security (%) 49 | . 100 100 86 100 . 90 20 5 . . . . . . 100 15 . Level 1 16 | . . . 13 . . 9 53 22 2 . . . . . . 42 13 Level 2 19 | . . . . . . . 7 33 84 . . . . . . 37 30 Level 3 10 | . . . . . . . 18 38 13 . . . . . . 5 25 Level 4 4 | . . . . . . . . . . . . . . . . . 31 Level 5 . | . . . . . . . . . . . . . . . . . . High Security . | . . . . . . . . . . . . . . . . . . Max Security . | . . . . . . . . . . . . . . . . . . Peak Influence 1441 | . 191 100 248 167 . 220 979 1084 729 . . . . . 170 709 1441 Initial 488 | . . 58 31 48 . . 43 410 488 . . . . . 105 59 339 Average 338 | . 96 72 88 21 . 138 382 617 505 . . . . . 104 420 854 Influence Increases 8634 | . 277 62 529 271 . 390 1224 1421 605 211 26 . . 457 207 1218 1736 Destroy 0b10 Robot/C 4380 | . 160 40 260 160 . 220 520 600 280 140 20 . . 340 120 700 820 Destroy 0b10 Robot/NC 315 | . 15 . 40 20 . 25 75 65 10 . . . . 5 10 30 20 Destroy Leader 814 | . 32 10 74 10 . 30 124 178 62 30 . . . 40 20 64 140 Allied During Kill 1527 | . 49 12 87 65 . 66 169 362 99 41 6 . . 72 35 191 273 Successful Hack 100 | . 20 . 23 . . . . 31 . . . . . . 4 . 22 Disable Machine 405 | . . . . . . . 45 135 90 . . . . . . 45 90 Anti-Garrison Action 300 | . . . . . . . 150 . . . . . . . . . 150 Destroy Structure 523 | . 1 . . 16 . 49 111 35 34 . . . . . 18 113 146 Lose Combat Pursuer 270 | . . . 45 . . . 30 15 30 . . . . . . 75 75 Influence Decreases 7245 | . 126 133 484 241 155 278 365 1317 975 616 326 . . 290 252 647 1040 Entered New Map 2389 | . . 93 49 77 155 . 69 561 587 262 57 . . . 62 63 354 Time Decay 3489 | . 126 40 285 154 . 268 286 326 278 334 262 . . 230 180 334 386 Lost Part 637 | . . . . 10 . 10 10 30 50 20 7 . . 60 10 150 280 Lost Ally 280 | . . . . . . . . 100 60 . . . . . . 100 20 Purge Threat 450 | . . . 150 . . . . 300 . . . . . . . . . Squads Dispatched 41 | . 3 . 3 . . . 6 8 3 . . . . . 2 4 12 Investigation 18 | . 3 . 2 . . . 2 3 1 . . . . . . 2 5 Extermination 3 | . . . . . . . . . 1 . . . . . 1 . 1 Reinforcement 9 | . . . 1 . . . 2 1 . . . . . . 1 2 2 Assault 7 | . . . . . . . 2 1 1 . . . . . . . 3 Garrison 4 | . . . . . . . . 3 . . . . . . . . 1 Intercept . | . . . . . . . . . . . . . . . . . . Searches Triggered . | . . . . . . . . . . . . . . . . . . Construction Impeded 3 | . . . . . . . . 1 . . . . . . . 2 . Haulers Reinforced . | . . . . . . . . . . . . . . . . . . Active Scanning Responses . | . . . . . . . . . . . . . . . . . . Cargo Convoy Interrupts . | . . . . . . . . . . . . . . . . . . Stealth | -11 -10 -10 -9 -9 -9 -8 -8 -8 -7 -7 -7 -7 -7 -6 -6 -6 -5 --------- Run | Yrd Mat Min Mat Min Exi Min Mat Sto Fac Low Low Zio Dee Pro Fac Ext Fac Distress Signals 14 | . 1 . 1 . . . . 6 . . . . . . . 6 . Communications Jammed . | . . . . . . . . . . . . . . . . . . Distress Signals . | . . . . . . . . . . . . . . . . . . Times Spotted 258 | . 11 2 15 9 . 11 36 26 17 7 4 . 14 12 6 43 45 Peak Tracking Total 10 | . 2 2 4 3 . 4 7 6 4 3 4 . 6 4 4 8 10 Tactical Retreats 9 | . . . 1 . . . 1 1 1 . . . . . . 3 2 Traps | -11 -10 -10 -9 -9 -9 -8 -8 -8 -7 -7 -7 -7 -7 -6 -6 -6 -5 ------- Run | Yrd Mat Min Mat Min Exi Min Mat Sto Fac Low Low Zio Dee Pro Fac Ext Fac Traps Triggered 5 | . . . 1 . . . . 1 1 . . . . . . 2 . Indirectly 1 | . . . . . . . . . . . . . . . . 1 . Trap Hack Attempts . | . . . . . . . . . . . . . . . . . . Triggered . | . . . . . . . . . . . . . . . . . . Disarmed . | . . . . . . . . . . . . . . . . . . Reprogrammed . | . . . . . . . . . . . . . . . . . . Reused . | . . . . . . . . . . . . . . . . . . Traps Extracted . | . . . . . . . . . . . . . . . . . . Installed . | . . . . . . . . . . . . . . . . . . Triggered . | . . . . . . . . . . . . . . . . . . Machines | -11 -10 -10 -9 -9 -9 -8 -8 -8 -7 -7 -7 -7 -7 -6 -6 -6 -5 ---------- Run | Yrd Mat Min Mat Min Exi Min Mat Sto Fac Low Low Zio Dee Pro Fac Ext Fac Machines Disabled 34 | . . . . . . . 4 9 6 . . 4 . . . 4 7 Max in Single Turn 4 | . . . . . . . 2 4 3 . . 1 . . . 1 3 Garrison Access 3 | . . . . . . . 1 . . . . . . . . . 2 Machines Repaired . | . . . . . . . . . . . . . . . . . . Machines Dismantled 4 | . . . . . . . . . . . . 4 . . . . . Machines Sabotaged . | . . . . . . . . . . . . . . . . . . Overloaded Fab Kills . | . . . . . . . . . . . . . . . . . . Hacking | -11 -10 -10 -9 -9 -9 -8 -8 -8 -7 -7 -7 -7 -7 -6 -6 -6 -5 --------- Run | Yrd Mat Min Mat Min Exi Min Mat Sto Fac Low Low Zio Dee Pro Fac Ext Fac Machines Accessed 33 | . 4 . 5 . 2 . 2 8 1 . . . . . 2 2 7 Terminals 24 | . 4 . 4 . . . 1 7 1 . . . . . 1 2 4 Fabricators . | . . . . . . . . . . . . . . . . . . Repair Stations 1 | . . . . . . . . . . . . . . . . . 1 Recycling Units 2 | . . . 1 . . . . . . . . . . . 1 . . Scanalyzers . | . . . . . . . . . . . . . . . . . . Garrison Access 4 | . . . . . . . 1 1 . . . . . . . . 2 Total Hacks 103 | . 17 . 18 . 2 . 4 28 3 . . . . . 4 8 19 Successful 49 | . 6 . 9 . 2 . . 21 . . . . . . 2 3 6 Failed 54 | . 11 . 9 . . . 4 7 3 . . . . . 2 5 13 Catastrophic 16 | . 5 . 3 . . . 3 . . . . . . . . 1 4 Database Lockouts . | . . . . . . . . . . . . . . . . . . Manual 45 | . 9 . 4 . 1 . 2 17 3 . . . . . . 4 5 Terminals 87 | . 17 . 14 . . . 2 26 3 . . . . . 3 8 14 Fabricators . | . . . . . . . . . . . . . . . . . . Repair Stations 1 | . . . . . . . . . . . . . . . . . 1 Recycling Units 5 | . . . 4 . . . . . . . . . . . 1 . . Scanalyzers . | . . . . . . . . . . . . . . . . . . Garrison Access 8 | . . . . . . . 2 2 . . . . . . . . 4 Terminal Hacks 40 | . 6 . 8 . 2 . . 16 . . . . . . 1 3 4 Record 1 | . . . . . 1 . . . . . . . . . . . . Part Schematic 1 | . . . . . . . . . . . . . . . . . 1 Robot Analysis 1 | . . . . . . . . 1 . . . . . . . . . Prototype ID Bank 6 | . 2 . 1 . . . . 1 . . . . . . . . 2 Open Door 2 | . . . . . . . . 1 . . . . . . 1 . . Level Access Points 1 | . . . 1 . . . . . . . . . . . . . . Branch Access Points 3 | . . . 1 . . . . 1 . . . . . . . . 1 Terminal Index 1 | . . . . . . . . 1 . . . . . . . . . Alert Level 7 | . 1 . 1 . . . . 2 . . . . . . . 3 . Unreport Threat 3 | . . . 1 . . . . 2 . . . . . . . . . Locate Traps 6 | . 1 . 2 . . . . 3 . . . . . . . . . Patrol Status 2 | . . . 1 . . . . 1 . . . . . . . . . Hauler Manifests 1 | . 1 . . . . . . . . . . . . . . . . Zone Layout 4 | . 1 . . . . . . 3 . . . . . . . . . Proto ID Catalog 1 | . . . . . 1 . . . . . . . . . . . . Fabricator Hacks . | . . . . . . . . . . . . . . . . . . Repair Station Hacks . | . . . . . . . . . . . . . . . . . . Recycling Unit Hacks 2 | . . . 1 . . . . . . . . . . . 1 . . Report Inventory 2 | . . . 1 . . . . . . . . . . . 1 . . Scanalyzer . | . . . . . . . . . . . . . . . . . . Garrison Access Hacks 1 | . . . . . . . . . . . . . . . . . 1 Seal Access 1 | . . . . . . . . . . . . . . . . . 1 Unauthorized Hacks 6 | . . . . . . . . 5 . . . . . . . . 1 Terminals 3 | . . . . . . . . 3 . . . . . . . . . Track 1 | . . . . . . . . 1 . . . . . . . . . Botnet 2 | . . . . . . . . 2 . . . . . . . . . Fabricators . | . . . . . . . . . . . . . . . . . . Repair Stations 1 | . . . . . . . . . . . . . . . . . 1 Patch 1 | . . . . . . . . . . . . . . . . . 1 Recycling Units . | . . . . . . . . . . . . . . . . . . Scanalyzers . | . . . . . . . . . . . . . . . . . . Garrison Access 2 | . . . . . . . . 2 . . . . . . . . . Reprogram 1 | . . . . . . . . 1 . . . . . . . . . Intercept 1 | . . . . . . . . 1 . . . . . . . . . Data Cores Recovered 2 | . 1 . . . . . . 1 . . . . . . . . . Used . | . . . . . . . . . . . . . . . . . . Hacking Detections 28 | . 4 . 5 . . . 2 7 1 . . . . . 2 2 5 Full Trace Events 14 | . 3 . 2 . . . 2 1 1 . . . . . . 1 4 Feedback Events . | . . . . . . . . . . . . . . . . . . Feedback Blocked . | . . . . . . . . . . . . . . . . . . Robot Schematics Acquired . | . . . . . . . . . . . . . . . . . . Robots Built . | . . . . . . . . . . . . . . . . . . Authchips . | . . . . . . . . . . . . . . . . . . Time . | . . . . . . . . . . . . . . . . . . Total Robot Build Rating . | . . . . . . . . . . . . . . . . . . Part Schematics Acquired 1 | . . . . . . . . . . . . . . . . . 1 Parts Built . | . . . . . . . . . . . . . . . . . . Authchips . | . . . . . . . . . . . . . . . . . . Time . | . . . . . . . . . . . . . . . . . . Total Part Build Rating . | . . . . . . . . . . . . . . . . . . Parts Repaired . | . . . . . . . . . . . . . . . . . . Time . | . . . . . . . . . . . . . . . . . . Parts Recycled . | . . . . . . . . . . . . . . . . . . Recycled Matter . | . . . . . . . . . . . . . . . . . . Retrieved Matter . | . . . . . . . . . . . . . . . . . . Retrieved Components . | . . . . . . . . . . . . . . . . . . Parts Scanalyzed . | . . . . . . . . . . . . . . . . . . Part Schematics Acquired . | . . . . . . . . . . . . . . . . . . Parts Damaged . | . . . . . . . . . . . . . . . . . . Bothacking | -11 -10 -10 -9 -9 -9 -8 -8 -8 -7 -7 -7 -7 -7 -6 -6 -6 -5 ------------ Run | Yrd Mat Min Mat Min Exi Min Mat Sto Fac Low Low Zio Dee Pro Fac Ext Fac Used RIF Installer . | . . . . . . . . . . . . . . . . . . Robots Hacked . | . . . . . . . . . . . . . . . . . . Non-combat . | . . . . . . . . . . . . . . . . . . Combat . | . . . . . . . . . . . . . . . . . . Robot Hacks Applied . | . . . . . . . . . . . . . . . . . . Relay Couplers Released 2 | . . . . . . . 2 . . . . . . . . . . Machine Destruction 2 | . . . . . . . 2 . . . . . . . . . . Fabnet Peak Effective % . | . . . . . . . . . . . . . . . . . . Robots Rewired 6 | . . . . . . . . . . . . . . . . 6 . Allies Hacked . | . . . . . . . . . . . . . . . . . . Hacks Repelled . | . . . . . . . . . . . . . . . . . . Allies | -11 -10 -10 -9 -9 -9 -8 -8 -8 -7 -7 -7 -7 -7 -6 -6 -6 -5 -------- Run | Yrd Mat Min Mat Min Exi Min Mat Sto Fac Low Low Zio Dee Pro Fac Ext Fac Total Allies 23 | . 1 . . 3 . . . 11 . . . . . . . 8 . Largest Group 11 | . 1 1 1 3 3 1 1 11 5 1 1 1 1 1 1 4 4 Highest-Rated Group 250 | . 57 57 63 125 125 67 76 250 161 95 100 100 110 110 119 212 204 Highest-Rated Ally 138 | . 57 57 63 63 63 67 76 79 92 95 100 100 110 110 119 119 138 Total Orders 2 | . . . . . . . . . . . 2 . . . . . . ROAM 1 | . . . . . . . . . . . 1 . . . . . . RETURN 1 | . . . . . . . . . . . 1 . . . . . . Ally Attacks 442 | . 28 7 10 9 . 6 35 112 23 20 16 . 25 20 10 75 46 Total Damage 12672 | . 282 77 257 224 . 302 1056 2106 523 886 344 . 925 705 638 1613 2734 Kills 125 | . 5 2 7 5 . 5 15 25 4 5 3 . 3 10 6 11 19 Allies Corrupted . | . . . . . . . . . . . . . . . . . . Allies Melted . | . . . . . . . . . . . . . . . . . . Intel | -11 -10 -10 -9 -9 -9 -8 -8 -8 -7 -7 -7 -7 -7 -6 -6 -6 -5 ------- Run | Yrd Mat Min Mat Min Exi Min Mat Sto Fac Low Low Zio Dee Pro Fac Ext Fac Active Infowar (turns) 3207 | . . . . . . . 130 . 564 751 37 . 19 135 186 743 642 Optics 19 | . . . . . . . . . . . . . 19 . . . . Terrain 240 | . . . . . . . 105 . . . . . . 135 . . . Structural 201 | . . . . . . . 25 . . . . . . . . 176 . Seismic 1352 | . . . . . . . . . 564 751 37 . . . . . . Machine Analysis 1524 | . . . . . . . . . . . . . . . 186 743 595 ECM 47 | . . . . . . . . . . . . . . . . . 47 Robot Analysis Total 1 | . . . . . . . . 1 . . . . . . . . . Derelict Logs Recovered 7 | . . 1 . 1 . . . . . 2 1 2 . . . . . Drone Launches 10 | . . . . . . . . . . . 10 . . . . . . Drone Recoveries 10 | . . . . . . . . . . . 10 . . . . . . Exploration | -11 -10 -10 -9 -9 -9 -8 -8 -8 -7 -7 -7 -7 -7 -6 -6 -6 -5 ------------- Run | Yrd Mat Min Mat Min Exi Min Mat Sto Fac Low Low Zio Dee Pro Fac Ext Fac Turns Passed 11518 | . 300 98 747 1166 502 600 627 737 619 751 659 1123 1077 490 379 743 900 Spaces Moved 6216 | 1 184 51 345 422 259 491 388 374 293 406 275 402 589 356 218 748 414 Core 2 | . . . . . . 1 . . . . . . . . . 1 . Treads 3550 | . 93 51 345 422 220 . . 262 293 406 274 402 252 . . 117 413 Legs 269 | 1 1 . . . 39 30 3 . . . 1 . . 132 61 . 1 Wheels 1047 | . 90 . . . . 460 385 112 . . . . . . . . . Hover 1348 | . . . . . . . . . . . . . 337 224 157 630 . Flight . | . . . . . . . . . . . . . . . . . . Fastest Speed 22 | 120 80 160 160 160 90 90 98 98 170 170 163 245 52 52 95 22 160 Average Speed 139 | 120 121 160 160 160 149 96 104 144 170 170 193 245 138 112 139 58 160 Slowest Speed 450 | 120 160 160 160 160 160 450 330 240 170 250 400 245 330 210 310 400 190 Overloaded Moves . | . . . . . . . . . . . . . . . . . . Propulsion Burnouts . | . . . . . . . . . . . . . . . . . . Robots Hopped . | . . . . . . . . . . . . . . . . . . Potential Cave-ins 1 | . . . . . . . . . . . 1 . . . . . . Cave-ins Triggered . | . . . . . . . . . . . . . . . . . . Exploration Rate (%) 46 | 2 27 29 23 82 61 91 36 71 9 67 75 58 68 59 6 58 13 Regions Visited 17 Branch Regions 11 Pre-discovered Areas 4 | . . . . . 1 . . . . . . 3 . . . . . Known Exits Taken 4 | . . . 1 . . 1 1 . . . . . . . . 1 . Unknown Exits Taken 13 | 1 1 1 . 1 1 . . 1 1 1 1 1 1 1 1 . . Scrap Searched 7 | . . 1 . . . 2 . . . 2 1 1 . . . . . Spaces Dug 24 | . . . . . . 1 6 1 . . 14 . . . . 1 1 Terrain Destroyed 700 | . . . . 20 . 89 110 28 44 1 54 . 80 27 5 173 69 Melee 9 | . . . . . . 1 6 1 . . . . . . . 1 . Projectile 50 | . . . . . . . . . . 1 . . 11 6 5 3 24 AOE 641 | . . . . 20 . 88 104 27 44 . 54 . 69 21 . 169 45 Terrain Rammed . | . . . . . . . . . . . . . . . . . . Walls Destroyed . | . . . . . . . . . . . . . . . . . . Machines Disabled . | . . . . . . . . . . . . . . . . . . Actions | -11 -10 -10 -9 -9 -9 -8 -8 -8 -7 -7 -7 -7 -7 -6 -6 -6 -5 --------- Run | Yrd Mat Min Mat Min Exi Min Mat Sto Fac Low Low Zio Dee Pro Fac Ext Fac Total 8387 | . 235 58 489 874 382 594 543 521 369 430 397 467 810 420 277 971 550 Wait 1171 | . 7 2 60 425 92 49 41 73 30 2 68 13 148 37 38 76 10 Move 6199 | . 183 50 344 421 258 490 387 373 292 405 274 401 588 355 217 747 414 Hop . | . . . . . . . . . . . . . . . . . . Pick Up 88 | . 8 1 19 . 5 2 8 1 1 . 11 5 8 . 2 4 13 Fast Attach 102 | . 2 . . . 1 9 15 9 6 2 10 4 9 4 7 15 9 Attach 56 | . 4 . 8 . 4 5 2 1 . . 4 . 3 6 1 7 11 Detach 41 | . 3 . . . 4 11 1 1 . . 3 1 4 2 3 4 4 Swap 106 | . 4 . 7 2 3 4 14 9 11 3 3 2 14 2 1 11 16 Drop 140 | . 9 . 21 . 15 3 19 12 4 1 16 3 14 . 2 5 16 Fire 279 | . 15 5 27 16 . 9 13 13 19 17 7 . 21 14 6 41 56 Melee 103 | . . . . . . 12 43 29 3 . . 2 . . . 14 . Ram . | . . . . . . . . . . . . . . . . . . Kick . | . . . . . . . . . . . . . . . . . . Crush 20 | . . . 3 10 . . . . 1 . 1 . 1 . . 3 1 Escape Stasis 13 | . . . . . . . . . . . . . . . . 13 . Rewire 33 | . . . . . . . . . 2 . . . . . . 31 . Trap . | . . . . . . . . . . . . . . . . . . Miscellaneous 36 | . . . . . . . . . . . . 36 . . . . . Route ------- -11/Scrapyard -10/Materials -10/Mines -9/Materials (discovered 4 exits: Mat x3 / *Min) -9/Mines (discovered 4 exits: *Mat x2 / *Exi / [*Zio]) -9/Exiles -8/Mines -8/Materials (discovered 2 exits: *Fac / *Sto) -8/Storage (discovered 2 exits: *Fac / Rec) -7/Factory -7/Lower Caves -7/Lower Caves (discovered 2 exits: *Fac / [*Zio]) -7/Zion -7/Deep Caves -6/Proximity Caves -6/Factory (discovered 3 exits: Fac x2 / *Ext) -6/Extension -5/Factory (discovered 2 exits: Upp x2) History --------- Turn | Location | Event 1 | -11/Scrapyard | Discovered new exit (range 0) 1 | -11/Scrapyard | Entered Materials 177 | -10/Materials | Discovered new exit (range 16) 301 | -10/Materials | Entered Mines 315 | -10/Mines | Build established: Mutant 332 | -10/Mines | Learned Materials emergency access door positions 369 | -10/Mines | Received a Rocket Launcher from a helpful Derelict 378 | -10/Mines | Discovered new exit (range 14) 399 | -10/Mines | Entered Materials 399 | -9/Materials | Evolved 2 slots: Propulsion x1, Weapon x1 703 | -9/Materials | Build established: Gunner 878 | -9/Materials | Discovered new exit (range 16) 904 | -9/Materials | Identified exit to Materials 907 | -9/Materials | Identified exit to Mines 1146 | -9/Materials | Entered Mines 1188 | -9/Mines | Discovered exit to Materials (range 9) 1444 | -9/Mines | A Derelict revealed a hidden shortcut to a safe place 1479 | -9/Mines | Discovered exit to Materials (range 15) 1766 | -9/Mines | Excavation squad dispatched 1766 | -9/Mines | A large section of the Mines collapsed 2016 | -9/Mines | Excavation squad dispatched 2266 | -9/Mines | Received a Mining Laser from a helpful Derelict 2288 | -9/Mines | Deemed a non-threat by the Exiles lab entrance 2288 | -9/Mines | Discovered new exit (range 5) 2312 | -9/Mines | Entered Exiles 2312 | -9/Exiles | Accompanied by 2 allies 2342 | -9/Exiles | Led the pair of lost Derelicts to a safe place 2382 | -9/Exiles | Met 8R-AWN 2410 | -9/Exiles | Met EX-HEX 2453 | -9/Exiles | Met EX-BIN 2475 | -9/Exiles | Aligned with FarCom system 2477 | -9/Exiles | Given EX-Vault access code 2520 | -9/Exiles | Opened EX-Vault 2531 | -9/Exiles | Found Longsword +1 2538 | -9/Exiles | Found Army-in-a-Box 2550 | -9/Exiles | Found Potential Leg 2552 | -9/Exiles | Found Potential Leg 2607 | -9/Exiles | Exiles lab attacked by MAIN.C 2608 | -9/Exiles | Build established: Mutant 2694 | -9/Exiles | Learned location of Zion (-7) 2726 | -9/Exiles | Discovered new exit (range 10) 2814 | -9/Exiles | Stole three prototypes: Potential Leg, Longsword +1, Army-in-a-Box 2814 | -9/Exiles | Entered Mines 2862 | -8/Mines | Core integrity fell below 50% 3048 | -8/Mines | Found DCF Scrap (15 items) 3358 | -8/Mines | Discovered exit to Materials (range 5) 3367 | -8/Mines | Build established: Derelict-Mutant 3414 | -8/Mines | Entered Materials 3414 | -8/Materials | Evolved 2 slots: Utility x2 3415 | -8/Materials | Identified exit to Storage 3915 | -8/Materials | Discovered new exit (range 13) 3954 | -8/Materials | Destroyed 10 combat bots 4041 | -8/Materials | Entered Storage 4043 | -8/Storage | FarCom data flow suspended 4054 | -8/Storage | Identified exit to Recycling 4290 | -8/Storage | Garrison activated, responded to threat 4338 | -8/Storage | Build established: Scavenger-Gladiator 4441 | -8/Storage | Assisted by bots powering up and referring to "LRC-V3" 4441 | -8/Storage | First assault squad dispatched 4546 | -8/Storage | Lost 3 allies 4722 | -8/Storage | Discovered new exit (range 5) 4778 | -8/Storage | Entered Factory 4778 | -7/Factory | Accompanied by 4 allies 4778 | -7/Factory | Evolved 2 slots: Utility x2 5021 | -7/Factory | Lost 3 allies 5178 | -7/Factory | First assault squad dispatched 5347 | -7/Factory | Discovered new exit (range 16) 5397 | -7/Factory | Entered Lower Caves 5495 | -7/Lower Caves | Learned Factory trap positions 5527 | -7/Lower Caves | Learned location of 1 exit from Factory 5615 | -7/Lower Caves | Build established: Mutant 5648 | -7/Lower Caves | Spotted B-75 Beast 5672 | -7/Lower Caves | Allies destroyed B-75 Beast 5969 | -7/Lower Caves | Build established: Tank 6124 | -7/Lower Caves | Discovered new exit (range 13) 6148 | -7/Lower Caves | Entered another Lower Caves area 6244 | -7/Lower Caves | Discovered new exit (range 13) 6261 | -7/Lower Caves | Discovered new exit (range 105) 6575 | -7/Lower Caves | Build established: Mutant 6639 | -7/Lower Caves | Encountered a Warlord checkpoint 6718 | -7/Lower Caves | Spotted 4E-OP5(f) 6719 | -7/Lower Caves | Encountered a Master Thief 6719 | -7/Lower Caves | Spotted T9-0B9(f) 6720 | -7/Lower Caves | Encountered a Master Thief 6720 | -7/Lower Caves | Spotted 3Q-FAK(f) 6720 | -7/Lower Caves | Army-in-a-Box stolen by Master Thief 6721 | -7/Lower Caves | Encountered a Master Thief 6721 | -7/Lower Caves | Spotted O2-A81(f) 6722 | -7/Lower Caves | Encountered a Master Thief 6723 | -7/Lower Caves | Allies destroyed 4E-OP5(f) 6724 | -7/Lower Caves | Potential Leg stolen by Master Thief 6725 | -7/Lower Caves | Potential Leg stolen by Master Thief 6777 | -7/Lower Caves | Learned location of 1 exit from Factory 6807 | -7/Lower Caves | Entered Zion 6859 | -7/Zion | Found CR-A16's Pointy Stick 7110 | -7/Zion | Learned location of Data Miner (-6) 7231 | -7/Zion | Learned Factory emergency access door positions 7445 | -7/Zion | Discovered new exit (range 5) 7448 | -7/Zion | Saw the warning signs outside the Deep Caves entrance 7548 | -7/Zion | Found Prototype Launcher 7548 | -7/Zion | Identified Gui. Missile Launcher 7721 | -7/Zion | Learned Factory terminal intel 7930 | -7/Zion | Entered Deep Caves 8275 | -7/Deep Caves | Attacked by Z-Imprinter 8294 | -7/Deep Caves | Allies destroyed Z-Imprinter 8334 | -7/Deep Caves | Found Prototype Device 8334 | -7/Deep Caves | Identified Zio. Metafield Generator 8438 | -7/Deep Caves | Z-Facility disabled 8457 | -7/Deep Caves | Build established: Tank 8458 | -7/Deep Caves | Found Prototype Protection 8458 | -7/Deep Caves | Identified Zio. Weapon Casing 8479 | -7/Deep Caves | Found Zio. Weapon Casing 8592 | -7/Deep Caves | Lost 3 parts (1n2u) 8648 | -7/Deep Caves | Found Prototype Protection 8648 | -7/Deep Caves | Identified Zio. Heavy Carapace 8660 | -7/Deep Caves | Found Zio. Weapon Casing 8751 | -7/Deep Caves | Found Surveybot 24 Chip 8753 | -7/Deep Caves | Found Surveybot 24 Scanner 8966 | -7/Deep Caves | Discovered new exit (range 11) 9007 | -7/Deep Caves | Entered Proximity Caves 9222 | -6/Proximity Caves | Lost 4 parts (2n2u) 9480 | -6/Proximity Caves | Discovered new exit (range 5) 9497 | -6/Proximity Caves | Entered Factory 9497 | -6/Factory | Evolved 2 slots: Propulsion x1, Utility x1 9498 | -6/Factory | Identified exit to Factory 9499 | -6/Factory | Loaded intel: 69 trap records 9501 | -6/Factory | Loaded intel: 28 terminal locations 9550 | -6/Factory | Build established: Scavenger-Tank 9836 | -6/Factory | Discovered new exit (range 10) 9876 | -6/Factory | Entered Extension 9886 | -6/Extension | Rescued a captive Derelict 9887 | -6/Extension | Rescued a captive Derelict 9887 | -6/Extension | Rescued a captive Derelict 9890 | -6/Extension | Rescued a captive Derelict 9892 | -6/Extension | Rescued a captive Derelict 9894 | -6/Extension | Rescued a captive Derelict 9897 | -6/Extension | Rescued a captive Derelict 9898 | -6/Extension | Rescued a captive Derelict 9899 | -6/Extension | Rescued a captive Derelict 9904 | -6/Extension | Rescued a captive Derelict 9906 | -6/Extension | Rescued a captive Derelict 9909 | -6/Extension | Rescued a captive Derelict 9912 | -6/Extension | Rescued a captive Derelict 10017 | -6/Extension | Lost 3 allies 10052 | -6/Extension | Destroyed 8 combat bots 10076 | -6/Extension | Disrupted transfer network 10144 | -6/Extension | Disrupted transfer network 10286 | -6/Extension | Spotted B-75 Beast 10293 | -6/Extension | Spotted B-75 Beast 10295 | -6/Extension | Discovered exit to Factory (range 12) 10313 | -6/Extension | Core integrity fell below 50% 10316 | -6/Extension | Revealed the true nature of CR-A16's Pointy Stick 10319 | -6/Extension | Destroyed B-75 Beast 10320 | -6/Extension | Allies destroyed B-75 Beast 10349 | -6/Extension | Lost 10 parts (1p4n4u1w) 10418 | -6/Extension | Build established: Scavenger-Mutant 10457 | -6/Extension | Extracted ID and sensor layout for unrecognized location from A7's data core 10619 | -6/Extension | Entered Factory 10619 | -5/Factory | Accompanied by 3 allies 10619 | -5/Factory | Evolved 2 slots: Propulsion x1, Utility x1 10740 | -5/Factory | Build established: Scavenger-Tank 11011 | -5/Factory | Garrison activated, responded to threat 11067 | -5/Factory | Found Prototype Launcher 11067 | -5/Factory | Identified Tesla Bomb Launcher 11259 | -5/Factory | Lost 3 parts (3u) 11284 | -5/Factory | Core integrity fell below 50% 11338 | -5/Factory | Lost 3 parts (1n2u) 11371 | -5/Factory | Identified exit to Upper Caves 11501 | -5/Factory | Core integrity fell below 20% 11519 | -5/Factory | First assault squad dispatched 11519 | -5/Factory | Destroyed by H-71 Marshal with Heavy Mass Driver Last Messages --------------- 11511_ Penetrated by Slug. 11511_ Zio. Laser-S destroyed. 11512_ Acquired Enh. Armored Leg. 11512_ R-10 Processor collects Corrupted Imp. Surge Thruster. 11513_ Imp. Medium Treads destroyed. 11513_ Zio. Laser-S destroyed. 11514_ The unstable cave ceiling collapses. 11514_ 5 Matter crushed. 11515_ H-71 Marshal calls for reinforcements. 11515_ ALERT: Hostile activity reported, dispatching reinforcements to area. 11515_ Penetrated by Slug. 11515_ Gui. EMP Blaster destroyed. 11515_ Knocked back. 11516_ R-10 Processor collects Corrupted Imp. Surge Thruster. 11518_ Acquired Corrupted Imp. Surge Thruster. 11518_ Integrated Corrupted Imp. Surge Thruster (+4). 11519_ The unstable cave ceiling collapses. 11519_ ALERT: Unidentified disturbance in Zone 2O, assault force dispatched. Map ----- +----------------------------------------------------+ | ?????????????????????????????????????????????????? | | ?????????????????????????????????????????????????? | | ?????????????????????????????????????????????????? | | ?????????????????????????????????????????????????? | | ?????????????????????????????????????????????????? | | ?????????????????????????????????????????????????? | | ?????????????????????????????????????????????????? | | ?????????????????????????????????????????????????? | | ?????????????????????????????????????????????????? | | ?????????????????????????????????????????????????? | | ?????????????????????????????????????????????????? | | ?????????????????????????????????????????????????? | | ?????????????????????????????????????????????????? | | ??????????????????????????????????????????##?????? | | ???????????????##???????????????#????????? ????? | | ????????????? #;#????????????? #???????? ????? | | ????????????? ;############# #????????"" "????? | | ???????????? #???# ???"" """??# | | ???????????? R #???# """" """" # | | ???????????? =%* #???# """" """" # | | ??????????? H = ????# """" """" # | | ??????????? !%= ##????# """" """" # | | ?????????? R*!=! #????# # | | ?????????????? /%*/# #?????# # | | ????????????????????# =% ] #?????# # | | ????????????????????# @ # #?????# # | | ????????????????????# %% #???#######+###### | | ????????????????????# ###??????# ### | | ????????????????####### #????????# | | ????????????# " # ###????????# | | ????????????????######+##+#####????????# " | | ????????????????????# #????????# | | ????????????????????# #????????# | | ????????????????????# #????????# ### | | ????????????????????# #????????### ###?? | | ????????????????????#######"############## #???? | | ?????????????????????????# # #?""" | | ?????????????????????????# ""# #?"Y" | | ?????????????????????????# T"# #?"?" | | ?????????????????????????# "" ""# #???? | | ?????????????????????????# "" + #???? | | ?????????????????????????# """ # +???? | | ?????????????????????????# """ % # #???? | | ?????????????????????????# """ ! # ##### | | ????????????????????????## " | | ????????????????????????#" " | | ????????????????????????####"############# | | ???????????????????????????###?# ] # !%= | | ?????????????????????????????????""" [ | | ?????????????????????????????????""" # [ | +----------------------------------------------------+ Best States ------------- Heat Dissipation 78 Coolant Potential 65 Energy Generation 27 Energy Capacity 1150 Matter Stores 350 Matter Capacity 350 Sight Range 22 Terrain Scan Range 24 Terrain Scan Density 2010 ECM Strength 1 Power Amplification 20 Armor Coverage 1600 Resistance: TH 15 Weapon Shielding 100 Evasion (%) 60 Targeting Accuracy 5 Melee Accuracy 5 Target Analysis 6 Recoil Reduction 4 Offensive Hacking 20 Item Schematics ----------------- Lrn. Terrain Scanner | -5/Factory | Hacked Robot Schematics ------------------ None Fabricated ------------ Nothing Repaired ---------- Nothing Alien Tech Used ----------------- None Achievements -------------- None Challenges ------------ None Player 2 | -11 -10 -10 -9 -9 -9 -8 -8 -8 -7 -7 -7 -7 -7 -6 -6 -6 -5 ---------- Run | Yrd Mat Min Mat Min Exi Min Mat Sto Fac Low Low Zio Dee Pro Fac Ext Fac Slots Evolved 10 | . . 2 . . . 2 . 2 . . . . . 2 . 2 . Power 1 | . . . . . . . . 1 . . . . . . . . . Propulsion 2 | . . 1 . . . . . 1 . . . . . . . . . Utility 4 | . . . . . . 2 . . . . . . . . . 2 . Weapon 3 | . . 1 . . . . . . . . . . . 2 . . . Parts Attached 127 | . 10 . 16 1 . 2 12 14 9 3 9 . 7 . 5 6 33 Parts Lost 17 | . . . . 1 . . . 1 1 1 . . 2 . . 1 10 Damage Taken 5042 | . 212 25 80 227 . 83 359 234 600 157 28 . 409 395 116 111 2006 Core 1069 | . 59 . 8 47 . 6 32 33 49 . . . 135 15 37 22 626 Player 2/Cogmind (%) 41 | . 100 . 14 50 . 6 35 19 100 . . . 70 16 50 3 61 Absorbed by Shields . | . . . . . . . . . . . . . . . . . . Damage Inflicted 10319 | . 282 77 257 98 . 302 1056 1246 412 886 208 . 925 705 638 596 2631 Player 2/Cogmind (%) 32 | . 51 35 29 15 . 18 24 34 19 54 27 . 37 49 66 13 42 Combat Hostiles Destroyed 85 | . 3 2 6 2 . 1 11 13 3 4 1 . 3 10 5 4 17 Player 2/Cogmind (%) 38 | . 37 100 46 22 . 9 39 65 23 57 100 . 21 58 83 13 42 Game ------ Seed SigixAssaultFilter Manual? 0 Play Time 01:12:33 Cumulative 1104.3 hours Start 2025.06.12 @ 12:18:24 End 2025.06.12 @ 13:35:46 Sessions 2 Manual Loads 0 Difficulty Rogue Special Mode AFD2020/Player2 Game No. 1358 Rogue 1074 Adventurer 124 Explorer 160 Win Type - Total 50 Types 36/0/8/4/1/0/0/1/0/0 Lore% 92 Gallery% 87 Achievement% 81 Wizard Run 0 Options --------- Layout 0 ASCII 0 Keyboard 1 Movement Numpad Keybinds 0 Fullscreen 2 Font 18/X11 Map View 76x50 Zoom Use 0% Tactical HUD 1 Map Filters NONE Filters NONE Steam 1 RUN: 03bddea9-6144-43e9-ab95-ee64c9653afa